bitfinex-derivatives/quotes_SOLF0:USTF0_20250529
["timestamp","ask_amount","ask_price","bid_price","bid_amount"]
[1748508762294,0.04043535,172.97,172.95,5.7802]
[1748508764197,5.82013535,172.97,172.94,5.81975223]
[1748508765100,0.04043535,172.97,172.95,5.7801]
[1748508765492,0.04043535,172.97,172.94,0.03925223]
[1748508765893,5.82003535,172.97,172.94,5.81965223]
[1748508766091,0.04043535,172.97,172.94,0.03925223]
[1748508766500,5.7803,172.96,172.94,0.03925223]
[1748508766901,36.7803,172.96,172.94,0.03925223]
[1748508767105,5.7803,172.95,172.94,0.03925223]
[1748508767604,2.0019,172.95,172.9,5.7819]
[1748508768504,31.0,172.96,172.9,5.7819]
[1748508768706,0.03762664,172.95,172.91,0.04038046]
[1748508768900,5.7811,172.93,172.91,0.04038046]
[1748508769201,30.76,172.92,172.83,2.0366]
[1748508769407,5.7822,172.9,172.82,30.76]
[1748508770110,0.04412396,172.88,172.84,0.04259722]
[1748508770502,30.80412396,172.88,172.84,0.04259722]
[1748508770701,5.7832,172.87,172.84,5.82629722]
[1748508771807,36.58682396,172.88,172.84,5.82629722]
[1748508772408,36.58682396,172.88,172.85,5.7835]
[1748508772807,30.80412396,172.88,172.85,5.7835]
[1748508773900,36.58682396,172.88,172.85,5.7835]
[1748508774200,30.80412396,172.88,172.84,0.04259722]
[1748508774600,30.80412396,172.88,172.87,5.783]
[1748508775303,0.04412396,172.88,172.87,5.783]
[1748508777413,2.396e-05,172.88,172.87,5.783]
[1748508780316,30.76,172.97,172.96,5.78]
[1748508780827,30.76,172.97,172.95,5.7801]
[1748508782513,30.76,172.97,172.94,5.81771631]
[1748508782722,30.76,172.97,172.94,0.03721631]
[1748508783819,30.76,172.97,172.95,5.7803]
[1748508786009,30.76,172.97,172.94,5.81781631]
[1748508786213,30.76,172.97,172.94,0.03721631]
[1748508786717,30.76,172.97,172.95,5.7803]
[1748508787120,30.76,172.97,172.94,5.81771631]
[1748508788215,30.76,172.97,172.96,5.78]
[1748508788921,30.76,172.97,172.94,0.03721631]
[1748508789921,30.76,172.97,172.94,5.81781631]
[1748508790118,30.76,172.97,172.94,0.03721631]
[1748508791117,5.78,172.96,172.94,0.03721631]
[1748508791621,38.6175,172.97,172.94,0.03721631]
[1748508791820,32.8378,172.97,172.94,0.03721631]
[1748508792212,38.6176,172.97,172.94,0.03721631]
[1748508792617,32.8378,172.97,172.94,0.03721631]
[1748508794021,5.7803,172.96,172.94,0.03721631]
[1748508794421,5.7803,172.95,172.94,0.03721631]
[1748508796326,39.85164667,172.97,172.94,0.03721631]
[1748508796525,1.9846,172.96,172.86,30.76]
[1748508796732,5.7807,172.94,172.86,30.76]
[1748508796920,30.76,172.93,172.86,30.76]
[1748508797428,0.03738716,172.91,172.88,0.03729484]
[1748508798824,0.03738716,172.91,172.9,5.7818]
[1748508802527,30.76,173.01,172.9,30.76]
[1748508802925,30.76,173.01,172.91,2.0401]
[1748508803230,30.76,173.01,172.98,5.779]
[1748508803624,30.7997077,173.01,172.98,5.81726597]
[1748508804226,30.7997077,173.01,172.99,5.7789]
[1748508804422,30.7997077,173.01,172.98,0.03826597]
[1748508804624,36.5780077,173.01,172.98,0.03826597]
[1748508804828,30.7997077,173.01,172.98,0.03826597]
[1748508805030,30.7997077,173.01,172.99,5.7788]
[1748508806644,30.7997077,173.01,172.98,0.03826597]
[1748508807037,30.7997077,173.01,172.99,5.7787]
[1748508808437,30.7997077,173.01,173.0,5.7786]
[1748508808937,30.7997077,173.01,172.98,5.81736597]
[1748508809136,30.7997077,173.01,172.98,0.03826597]
[1748508810345,5.779,172.99,172.98,0.03826597]
[1748508810736,2.0224,173.0,172.98,5.81756597]
[1748508810939,36.5781077,173.01,172.98,0.03826597]
[1748508811240,30.7997077,173.01,172.98,0.03826597]
[1748508812041,5.7787,173.0,172.98,0.03826597]
[1748508815840,30.7997077,173.01,172.98,0.03826597]
[1748508817044,30.7997077,173.01,173.0,5.7786]
[1748508819553,30.7997077,173.01,172.99,5.7789]
[1748508820043,30.7997077,173.01,172.98,0.03826597]
[1748508820452,30.7997077,173.01,173.0,5.7786]
[1748508822847,30.7997077,173.01,172.99,5.7788]
[1748508823141,30.7997077,173.01,172.91,2.0401]
[1748508823342,30.7997077,173.01,172.88,2.0427]
[1748508823547,5.7798,172.97,172.88,2.0427]
[1748508823852,30.76,172.96,172.93,5.7808]
[1748508824147,30.79700404,172.96,172.93,5.82030734]
[1748508824649,36.57710404,172.96,172.93,5.82030734]
[1748508826252,30.79700404,172.96,172.93,0.03950734]
[1748508827654,5.7806,172.95,172.93,0.03950734]
[1748508827859,30.79700404,172.96,172.93,0.03950734]
[1748508828265,5.7805,172.95,172.93,0.03950734]
[1748508830871,36.57710404,172.96,172.93,0.03950734]
[1748508831772,30.79700404,172.96,172.93,0.03950734]
[1748508832673,0.03700404,172.96,172.93,0.03950734]
[1748508833061,0.03700404,172.96,172.95,5.7803]
[1748508833872,4.04e-06,172.96,172.95,5.7803]
[1748508835464,4.04e-06,172.96,172.95,9.6165]
[1748508836160,4.04e-06,172.96,172.95,5.7803]
[1748508836361,4.04e-06,172.96,172.95,9.5794]
[1748508836565,4.04e-06,172.96,172.95,5.7803]
[1748508836762,4.04e-06,172.96,172.95,9.5794]
[1748508837373,4.04e-06,172.96,172.95,5.7803]
[1748508837965,4.04e-06,172.96,172.95,7.6944]
[1748508838163,4.04e-06,172.96,172.95,5.7803]
[1748508840279,4.04e-06,172.96,172.94,5.7805]
[1748508840580,4.04e-06,172.96,172.93,0.03950734]
[1748508841282,4.04e-06,172.96,172.94,5.7806]
[1748508842379,4.04e-06,172.96,172.95,5.7803]
[1748508844883,40.5848,173.05,173.01,5.7782]
[1748508845181,34.8076,173.05,173.01,5.7782]
[1748508845983,5.7773,173.04,173.01,5.8205373]
[1748508846680,30.77757031,173.05,173.01,0.0423373]
[1748508847785,30.77757031,173.05,173.03,5.7774]
[1748508848882,30.77757031,173.05,173.04,5.7773]
[1748508852080,30.77757031,173.05,173.03,5.7776]
[1748508852882,30.77757031,173.05,173.01,0.0423373]
[1748508853585,5.7774,173.04,173.01,0.0423373]
[1748508854689,5.7774,173.04,173.01,5.8206373]
[1748508854892,5.7777,173.03,173.01,0.0423373]
[1748508855191,30.77757031,173.05,173.01,0.0423373]
[1748508855983,5.7779,173.03,173.01,0.0423373]
[1748508856492,5.7778,173.03,173.01,0.0423373]
[1748508857497,5.778,173.02,173.01,0.0423373]
[1748508857901,5.7777,173.03,173.01,0.0423373]
[1748508860802,5.778,173.02,173.01,0.0423373]
[1748508862296,1.9874,173.04,173.01,0.0423373]
[1748508862494,30.77757031,173.05,173.01,0.0423373]
[1748508862698,36.55477031,173.05,173.01,5.8205373]
[1748508863104,5.81477031,173.05,173.01,5.8205373]
[1748508865305,5.7774,173.04,173.01,5.8205373]
[1748508865501,5.7774,173.04,173.01,0.0423373]
[1748508865704,5.7779,173.03,173.01,0.0423373]
[1748508867205,5.7774,173.04,173.01,0.0423373]
[1748508868714,5.7778,173.03,173.01,0.0423373]
[1748508869109,30.73757031,173.05,173.01,0.0423373]
[1748508869903,5.7773,173.04,173.01,5.8206373]
[1748508870309,5.7773,173.04,173.01,0.0423373]
[1748508871609,5.7773,173.04,173.01,5.8206373]
[1748508872217,36.4773,173.04,173.01,5.8206373]
[1748508872917,5.7773,173.04,173.01,5.8206373]
[1748508873117,36.4773,173.04,173.01,5.8206373]
[1748508873421,30.7,173.04,173.01,0.0423373]
[1748508874017,5.778,173.02,173.01,0.0423373]
[1748508876414,30.7,173.04,172.93,30.74]
[1748508876614,2.0132,173.03,172.96,5.7799]
[1748508876814,4.0085,173.03,172.96,5.7799]
[1748508877121,5.7789,173.0,172.96,5.7799]
[1748508877315,36.4789,173.0,172.96,5.7799]
[1748508877519,36.51631996,173.0,172.96,5.8228291]
[1748508877819,30.73741996,173.0,172.97,5.7795]
[1748508879010,30.73741996,173.0,172.98,5.7792]
[1748508882928,30.73741996,173.0,172.96,0.0429291]
[1748508883927,30.73741996,173.0,172.99,5.779]
[1748508884822,30.73741996,173.0,172.98,5.7792]
[1748508885028,30.73741996,173.0,172.96,0.0429291]
[1748508886130,30.73741996,173.0,172.98,5.7791]
[1748508886931,30.73741996,173.0,172.97,5.7796]
[1748508887822,30.73741996,173.0,172.98,5.7793]
[1748508888424,0.03741996,173.0,172.99,5.779]
[1748508888641,1.9913,173.1,172.96,0.0429291]
[1748508888830,4.0577,173.1,172.94,5.03464667]
[1748508889025,5.7769,173.06,173.01,5.778]
[1748508889226,30.7,173.06,173.01,5.778]
[1748508889424,30.7,173.06,172.94,5.03464667]
[1748508889625,30.7,173.06,173.0,5.7784]
[1748508889626,0.03942595,173.02,173.0,5.7784]
[1748508890025,0.03942595,173.02,172.98,0.03719885]
[1748508890632,30.73942595,173.02,172.98,0.03719885]
[1748508891226,36.51762595,173.02,172.98,5.81619885]
[1748508891421,30.73942595,173.02,172.98,5.81619885]
[1748508891622,30.73942595,173.02,172.98,0.03719885]
[1748508891829,30.73942595,173.02,172.99,5.7789]
[1748508893135,30.73942595,173.02,172.98,5.81649885]
[1748508893538,36.51742595,173.02,172.98,5.81649885]
[1748508894134,30.73942595,173.02,172.98,5.81649885]
[1748508894530,30.73942595,173.02,172.98,0.03719885]
[1748508896635,0.03942595,173.02,172.98,0.03719885]
[1748508898045,0.03942595,173.02,173.0,5.7785]
[1748508898340,0.03942595,173.02,172.98,0.03719885]
[1748508898731,0.03942595,173.02,173.0,5.7784]
[1748508899335,0.03942595,173.02,173.01,5.7783]
[1748508907651,34.7177,173.1,172.99,3.9146]
[1748508907845,34.7177,173.1,172.99,5.8235]
[1748508908352,30.66,173.09,172.99,5.8235]
[1748508908548,0.03892696,173.06,173.02,0.03930715]
[1748508908746,0.03892696,173.06,173.05,5.7767]
[1748508909346,2.047,173.14,173.02,0.03930715]
[1748508909347,30.64,173.13,173.07,5.7761]
[1748508909544,30.64,173.13,173.0,35.67464667]
[1748508910345,0.03922206,173.08,173.05,0.03868038]
[1748508910952,0.03922206,173.08,173.07,5.7763]
[1748508914845,0.03922206,173.08,173.06,5.7766]
[1748508915043,0.03922206,173.08,173.05,0.03868038]
[1748508916154,5.7766,173.06,173.05,0.03868038]
[1748508917051,36.4166,173.06,173.05,0.03868038]
[1748508918353,30.64,173.06,173.05,0.03868038]
[1748508918854,0.03922206,173.08,173.05,0.03868038]
[1748508919053,30.67922206,173.08,173.05,0.03868038]
[1748508920656,5.7766,173.06,173.05,0.03868038]
[1748508921754,3.923,173.07,172.96,30.64]
[1748508921957,5.03464667,173.06,172.96,30.64]
[1748508922153,5.7786,173.01,172.97,5.7795]
[1748508922352,36.4186,173.01,172.97,5.7795]
[1748508922652,36.45804661,173.01,172.97,5.81871939]
[1748508923062,30.67944661,173.01,172.97,0.03921939]
[1748508923555,5.7789,173.0,172.97,0.03921939]
[1748508923863,30.67944661,173.01,172.97,0.03921939]
[1748508924254,36.45794661,173.01,172.97,5.81871939]
[1748508925264,5.7786,173.0,172.97,5.81871939]
[1748508925959,5.7791,172.99,172.97,0.03921939]
[1748508927362,5.7787,173.0,172.97,0.03921939]
[1748508928570,30.67944661,173.01,172.97,0.03921939]
[1748508929565,36.45794661,173.01,172.97,5.81861939]
[1748508929865,30.67944661,173.01,172.97,0.03921939]
[1748508930866,36.45784661,173.01,172.97,5.81881939]
[1748508931565,5.7786,173.0,172.97,5.81881939]
[1748508931772,30.67944661,173.01,172.97,0.03921939]
[1748508932664,5.7787,173.0,172.97,0.03921939]
[1748508932879,0.03944661,173.01,172.97,0.03921939]
[1748508934764,0.03944661,173.01,173.0,5.7786]
[1748508940275,34.563,173.07,173.03,5.7774]
[1748508940480,34.563,173.07,172.96,30.64]
[1748508941176,0.04425416,173.03,173.0,0.03890304]
[1748508941670,0.04425416,173.03,173.0,5.81740304]
[1748508941871,0.04425416,173.03,173.0,0.03890304]
[1748508942380,0.04425416,173.03,173.0,5.81750304]
[1748508944780,0.04425416,173.03,173.0,0.03890304]
[1748508945175,0.04425416,173.03,173.01,5.7782]
[1748508946075,0.04425416,173.03,173.02,5.778]
[1748508946678,0.04425416,173.03,173.01,5.7782]
[1748508947589,0.04425416,173.03,173.0,0.03890304]
[1748508948582,5.82215416,173.03,173.0,5.81750304]
[1748508949288,5.82215416,173.03,173.0,0.03890304]
[1748508949878,5.778,173.02,173.0,0.03890304]
[1748508950884,37.76185416,173.03,173.0,0.03890304]
[1748508951089,31.98425416,173.03,173.0,0.03890304]
[1748508951591,31.98425416,173.03,173.01,5.7783]
[1748508951891,31.98425416,173.03,173.02,5.778]
[1748508952290,31.98425416,173.03,173.0,0.03890304]
[1748508952496,31.98425416,173.03,173.01,5.7782]
[1748508953185,31.98425416,173.03,173.0,0.03890304]
[1748508954295,0.04425416,173.03,173.0,0.03890304]
[1748508954982,0.04425416,173.03,173.02,5.778]
[1748508956387,31.94,173.09,173.06,5.7766]
[1748508956589,37.7159,173.09,172.97,5.03464667]
[1748508956991,5.776,173.08,173.05,5.7767]
[1748508957297,5.776,173.08,173.05,5.81741004]
[1748508958692,5.776,173.08,173.05,0.04071004]
[1748508959994,5.776,173.08,173.05,5.81771004]
[1748508961885,5.776,173.08,173.05,0.04071004]
[1748508962190,5.7763,173.07,173.05,0.04071004]
[1748508962487,5.7761,173.08,173.05,0.04071004]
[1748508962794,31.94,173.09,173.05,0.04071004]
[1748508963000,5.7766,173.06,173.05,0.04071004]
[1748508964198,5.7764,173.07,173.05,0.04071004]
[1748508966298,5.7761,173.08,173.05,0.04071004]
[1748508966893,31.94,173.09,173.05,0.04071004]
[1748508967395,5.7766,173.06,173.05,0.04071004]
[1748508977005,5.778,173.02,172.98,5.779]
[1748508977407,31.84,173.03,172.93,3.8633]
[1748508977605,5.7787,173.0,172.93,3.8633]
[1748508977811,31.84,173.03,172.93,3.8633]
[1748508978007,0.04189839,173.0,172.96,0.04399573]
[1748508978204,5.82059839,173.0,172.96,0.04399573]
[1748508978511,0.04189839,173.0,172.96,0.04399573]
[1748508978710,5.7796,172.97,172.96,0.04399573]
[1748508979012,31.84,172.99,172.87,31.84]
[1748508979210,5.7809,172.94,172.86,4.0096]
[1748508979400,37.6209,172.94,172.86,4.0096]
[1748508979602,37.6209,172.94,172.91,5.7816]
[1748508979805,31.88349456,172.94,172.91,5.82340397]
[1748508980006,31.88349456,172.94,172.91,0.04180397]
[1748508980911,31.88349456,172.94,172.92,5.7813]
[1748508981109,31.88349456,172.94,172.91,0.04180397]
[1748508982517,31.88349456,172.94,172.93,5.781]
[1748508983110,0.04349456,172.94,172.93,5.781]
[1748508985808,9.456e-05,172.94,172.93,5.781]
[1748508986417,31.84,173.02,173.01,5.7783]
[1748508989808,0.04398734,173.03,173.02,5.778]
[1748508990118,0.04398734,173.03,173.0,0.04058552]
[1748508990419,0.04398734,173.03,173.02,5.778]
[1748508991314,31.88398734,173.03,173.02,5.778]
[1748508991718,0.04398734,173.03,173.0,0.04058552]
[1748508991914,31.88398734,173.03,173.0,0.04058552]
[1748508992310,5.7786,173.0,172.97,5.7794]
[1748508992523,31.84,172.99,172.97,5.7794]
[1748508994620,31.84,172.99,172.96,0.03793562]
[1748508995018,31.84,172.99,172.97,5.7796]
[1748508995221,31.84,172.99,172.96,0.03793562]
[1748508996820,31.84,172.99,172.97,5.7796]
[1748508997617,31.84,172.99,172.98,5.7793]
[1748508999726,31.84,172.99,172.97,5.7796]
[1748508999927,31.84,172.99,172.96,0.03793562]
[1748509000328,31.84,172.99,172.98,5.7793]
[1748509003228,0.04428325,173.0,172.99,5.779]
[1748509009235,0.04428325,173.0,172.96,0.03793562]
[1748509009927,0.04428325,173.0,172.99,5.779]
[1748509019334,0.04428325,173.0,172.96,0.03793562]
[1748509020036,0.04428325,173.0,172.97,5.7793]
[1748509022030,0.04428325,173.0,172.96,0.03793562]
[1748509022537,0.04428325,173.0,172.99,5.779]
[1748509024436,1.9804,173.06,172.97,33.106]
[1748509024635,31.2,173.07,172.98,2.0786]
[1748509025536,0.04436312,173.04,173.01,0.03947452]
[1748509026938,0.04436312,173.04,173.03,5.7776]
[1748509030839,31.2,173.1,173.07,5.7762]
[1748509031640,31.2,173.1,172.98,2.0786]
[1748509031837,31.2,173.1,173.02,0.03693585]
[1748509032039,5.7769,173.06,173.02,0.03693585]
[1748509032438,31.2,173.1,173.02,0.03693585]
[1748509032939,5.7772,173.05,173.02,0.03693585]
[1748509033244,31.2,173.1,173.02,0.03693585]
[1748509033535,5.7775,173.04,173.02,0.03693585]
[1748509033751,31.76,173.06,173.02,0.03693585]
[1748509034039,31.76,173.05,173.02,0.03693585]
[1748509034241,5.7776,173.03,173.02,0.03693585]
[1748509037144,33.7888,173.05,173.02,0.03693585]
[1748509038841,2.0288,173.05,173.02,0.03693585]
[1748509039041,5.7776,173.03,173.02,0.03693585]
[1748509044651,33.7888,173.05,172.95,2.0734]
[1748509044855,5.7789,173.0,172.93,33.7209]
[1748509045258,5.7789,173.0,172.97,5.7796]
[1748509045454,5.7784,173.01,172.93,33.7209]
[1748509045757,0.03758822,172.99,172.96,5.7799]
[1748509046059,0.03758822,172.99,172.96,0.0441912]
[1748509047057,0.03758822,172.99,172.97,5.7795]
[1748509047762,0.03758822,172.99,172.96,0.0441912]
[1748509048652,5.7793,172.98,172.96,0.0441912]
[1748509050163,0.03758822,172.99,172.96,0.0441912]
[1748509050358,0.03758822,172.99,172.96,5.8238912]
[1748509050563,0.03758822,172.99,172.96,0.0441912]
[1748509050964,0.03758822,172.99,172.97,5.7794]
[1748509051166,0.03758822,172.99,172.96,0.0441912]
[1748509051964,0.03758822,172.99,172.98,5.7793]
[1748509055465,8.822e-05,172.99,172.98,5.7793]
[1748509056892,33.8325,173.1,172.97,33.7075]
[1748509057092,33.8325,173.1,172.98,5.03464667]
[1748509057390,33.8325,173.1,173.07,5.7762]
[1748509057928,33.8325,173.1,173.07,5.81750981]
[1748509059515,31.76,173.1,173.07,0.04130981]
[1748509061503,31.76,173.1,173.08,5.7757]
[1748509062988,31.76,173.1,173.09,5.7756]
[1748509063174,31.76,173.1,173.07,0.04130981]
[1748509063370,5.7746,173.12,173.07,0.04130981]
[1748509063671,31.22,173.16,173.07,0.04130981]
[1748509064475,5.7739,173.15,173.07,0.04130981]
[1748509065072,5.774,173.14,173.1,5.775]
[1748509065274,5.774,173.14,173.1,5.8133667]
[1748509066078,5.7743,173.13,173.1,0.0383667]
[1748509066277,31.22,173.16,173.1,0.0383667]
[1748509067973,5.7749,173.11,173.1,0.0383667]
[1748509068879,10.81464667,173.11,173.01,31.2]
[1748509069083,3.9131,173.1,173.01,31.2]
[1748509069381,3.9131,173.1,173.02,5.7779]
[1748509069879,0.03836669,173.08,173.04,0.03942148]
[1748509070075,5.7766,173.06,173.04,0.03942148]
[1748509070375,31.2,173.07,173.04,0.03942148]
[1748509072280,5.777,173.05,173.04,0.03942148]
[1748509079283,5.7767,173.06,173.04,0.03942148]
[1748509080181,5.777,173.05,173.04,0.03942148]
[1748509081277,5.7767,173.06,173.04,0.03942148]
[1748509082887,31.2,173.07,173.04,0.03942148]
[1748509083784,31.2,173.07,173.06,5.7766]
[1748509089697,0.03836669,173.08,173.07,5.7763]
[1748509097993,5.7731,173.17,173.06,30.82]
[1748509098195,34.8212,173.18,173.06,30.82]
[1748509098693,40.5939,173.18,173.15,5.7736]
[1748509098894,40.5939,173.18,173.15,5.81761553]
[1748509099190,40.5939,173.18,173.15,0.04401553]
[1748509100795,9.7739,173.18,173.15,0.04401553]
[1748509100990,30.82,173.23,173.15,0.04401553]
[1748509102193,5.7717,173.21,173.17,5.7727]
[1748509102696,5.772,173.2,173.16,5.7732]
[1748509103793,35.85464667,173.23,173.15,0.04401553]
[1748509103990,6.0239,173.22,173.15,0.04401553]
[1748509105093,5.773,173.17,173.15,0.04401553]
[1748509106394,5.7733,173.16,173.15,0.04401553]
[1748509107393,30.8,173.19,173.1,5.775]
[1748509108601,0.04400389,173.16,173.13,0.03686024]
[1748509109195,5.7739,173.15,173.13,0.03686024]
[1748509109493,0.04400389,173.16,173.13,0.03686024]
[1748509109896,5.7739,173.15,173.13,0.03686024]
[1748509110105,0.04400389,173.16,173.13,0.03686024]
[1748509110997,5.7736,173.15,173.13,0.03686024]
[1748509113102,5.774,173.14,173.13,0.03686024]
[1748509115198,5.775,173.11,173.08,5.7759]
[1748509115901,5.7756,173.09,173.06,5.7766]
[1748509116201,5.7756,173.09,173.06,5.81557139]
[1748509116404,5.81924888,173.09,173.06,5.81557139]
[1748509116999,0.04364888,173.09,173.06,0.03897139]
[1748509117502,5.81944888,173.09,173.06,5.81547139]
[1748509117900,5.776,173.08,173.06,0.03897139]
[1748509118502,0.04364888,173.09,173.06,0.03897139]
[1748509118702,5.7763,173.07,173.06,0.03897139]
[1748509120202,0.04364888,173.09,173.06,0.03897139]
[1748509121504,5.81944888,173.09,173.06,5.81557139]
[1748509124506,0.04364888,173.09,173.07,5.7763]
[1748509124708,0.04364888,173.09,173.06,0.03897139]
[1748509125102,0.04364888,173.09,173.08,5.776]
[1748509131711,30.8,173.15,173.11,5.7748]
[1748509132310,36.5737,173.15,173.06,30.8]
[1748509132512,36.5737,173.15,173.07,3.9727]
[1748509132712,0.0372269,173.13,173.09,0.03845645]
[1748509133208,0.0372269,173.13,173.12,5.7746]
[1748509133411,2.0141,173.19,173.09,0.03845645]
[1748509133714,5.7732,173.17,173.12,5.7744]
[1748509133911,30.8,173.17,173.08,1.9323]
[1748509134512,30.8,173.17,173.11,0.04250097]
[1748509135217,5.7733,173.16,173.13,5.774]
[1748509135516,5.7733,173.16,173.11,0.04250097]
[1748509135907,5.7733,173.16,173.12,5.7744]
[1748509138611,30.8,173.17,173.11,0.04250097]
[1748509139019,5.7738,173.15,173.11,0.04250097]
[1748509139823,5.774,173.14,173.11,0.04250097]
[1748509140019,30.8,173.17,173.11,5.81740097]
[1748509140420,5.774,173.14,173.11,0.04250097]
[1748509141016,5.7733,173.16,173.11,0.04250097]
[1748509141218,3.9308,173.18,173.11,0.04250097]
[1748509142230,5.7734,173.16,173.12,5.7745]
[1748509144524,5.7737,173.15,173.11,5.81740097]
[1748509144918,5.7734,173.16,173.11,0.04250097]
[1748509145121,2.0141,173.19,173.11,0.04250097]
[1748509146532,30.8,173.18,173.11,0.04250097]
[1748509146931,5.7732,173.17,173.13,5.774]
[1748509147132,5.7732,173.17,173.11,0.04250097]
[1748509147323,30.8,173.18,173.11,0.04250097]
[1748509147832,36.5728,173.18,173.11,0.04250097]
[1748509148135,30.8,173.18,173.11,0.04250097]
[1748509149137,30.8,173.18,173.15,5.7735]
[1748509149434,30.8,173.18,173.15,5.8143192]
[1748509149635,30.8,173.18,173.16,5.7732]
[1748509150331,30.8,173.18,173.15,0.0408192]
[1748509150839,30.8,173.18,173.16,5.7732]
[1748509151033,30.8,173.18,173.15,0.0408192]
[1748509151433,2.0193,173.17,173.05,30.8]
[1748509151629,6.051,173.17,173.05,30.8]
[1748509151939,5.7749,173.12,173.05,30.8]
[1748509152439,0.03965639,173.1,173.07,0.0392228]
[1748509152639,0.03965639,173.1,173.07,5.8152228]
[1748509153633,5.81495639,173.1,173.07,0.0392228]
[1748509154131,0.03965639,173.1,173.07,0.0392228]
[1748509155741,5.81525639,173.1,173.07,5.8155228]
[1748509155942,0.03965639,173.1,173.07,0.0392228]
[1748509157138,0.03965639,173.1,173.09,5.7756]
[1748509161249,5.639e-05,173.1,173.09,5.7756]
[1748509162241,1.8961,173.24,173.09,41.57464667]
[1748509162242,30.76,173.23,173.09,41.57464667]
[1748509162447,30.76,173.23,173.1,2.0471]
[1748509162641,5.7717,173.21,173.1,2.0471]
[1748509162847,30.76,173.23,173.17,5.7726]
[1748509163145,5.771,173.23,173.18,0.03886015]
[1748509163344,30.76,173.22,173.18,0.03886015]
[1748509163745,30.76,173.22,173.19,5.772]
[1748509163945,30.76,173.22,173.18,0.03886015]
[1748509164443,2.016,173.26,173.18,0.03886015]
[1748509165044,5.7705,173.25,173.2,5.7717]
[1748509165247,2.016,173.26,173.18,0.03886015]
[1748509166151,5.7704,173.25,173.18,0.03886015]
[1748509166455,2.016,173.26,173.18,0.03886015]
[1748509166758,2.016,173.26,173.21,5.7715]
[1748509167049,2.016,173.26,173.22,0.0405664]
[1748509167843,2.016,173.26,173.11,30.76]
[1748509167844,5.03464667,173.25,173.11,30.76]
[1748509168044,30.76,173.24,173.11,30.76]
[1748509168457,5.7722,173.2,173.11,30.76]
[1748509168651,30.76,173.24,173.11,30.76]
[1748509168847,5.7727,173.18,173.16,0.04220861]
[1748509170456,5.7729,173.18,173.16,0.04220861]
[1748509171454,5.7729,173.17,173.16,0.04220861]
[1748509182558,5.03464667,173.18,173.01,30.76]
[1748509182858,1.9036,173.16,173.01,30.76]
[1748509183259,5.03464667,173.14,173.01,30.76]
[1748509183463,0.04242557,173.09,173.06,0.04042682]
[1748509183660,5.7762,173.08,173.06,0.04042682]
[1748509186271,36.57812557,173.09,173.06,0.04042682]
[1748509187861,36.57812557,173.09,173.06,5.81702682]
[1748509189568,5.776,173.08,173.06,0.04042682]
[1748509191470,5.7763,173.07,173.06,0.04042682]
[1748509193474,5.7762,173.08,173.06,0.04042682]
[1748509194363,5.7763,173.07,173.06,0.04042682]
[1748509196274,0.04242557,173.09,173.06,0.04042682]
[1748509196872,30.80242557,173.09,173.06,0.04042682]
[1748509197470,30.80242557,173.09,173.06,5.81692682]
[1748509197670,30.80242557,173.09,173.06,0.04042682]
[1748509197874,30.80242557,173.09,173.07,5.776]
[1748509200874,30.80242557,173.09,173.08,5.776]
[1748509201272,30.80242557,173.09,173.06,0.04042682]
[1748509202074,30.80242557,173.09,172.99,5.9196]
[1748509202275,30.80242557,173.09,172.99,2.0559]
[1748509202474,30.80242557,173.09,173.04,5.7772]
[1748509202676,30.76,173.09,173.04,5.7772]
[1748509203077,0.04053401,173.08,173.05,0.0432465]
[1748509203976,5.7764,173.07,173.05,0.0432465]
[1748509204181,0.04053401,173.08,173.05,0.0432465]
[1748509204572,5.7766,173.06,173.05,0.0432465]
[1748509204969,0.04053401,173.08,173.05,0.0432465]
[1748509205176,30.76,173.07,173.05,0.0432465]
[1748509205674,30.76,173.07,173.06,5.7766]
[1748509207179,30.76,173.07,173.05,0.0432465]
[1748509207582,30.76,173.07,173.05,5.8201465]
[1748509208785,30.76,173.07,173.06,5.7766]
[1748509208983,30.76,173.07,173.05,0.0432465]
[1748509209472,30.76,173.07,173.05,5.8199465]
[1748509209677,30.76,173.07,173.05,0.0432465]